bitfinex/quotes_BTCUSD_20250817
["timestamp","ask_amount","ask_price","bid_price","bid_amount"]
[1755462815912,0.19326641,117800.0,117790.0,0.89631752]
[1755462816112,0.19326641,117800.0,117790.0,0.89832752]
[1755462816430,0.19326641,117800.0,117790.0,0.93611417]
[1755462821072,0.19326641,117800.0,117790.0,0.68159035]
[1755462821300,0.19326641,117800.0,117790.0,0.93611417]
[1755462822546,0.19009641,117800.0,117790.0,0.93611417]
[1755462831363,0.19009641,117800.0,117790.0,0.93933417]
[1755462831857,0.01833713,117800.0,117790.0,0.93933417]
[1755462832055,0.18998819,117800.0,117790.0,0.93933417]
[1755462832207,0.18811641,117800.0,117790.0,0.93933417]
[1755462832408,0.01833713,117800.0,117790.0,0.93933417]
[1755462838105,0.00088811,117800.0,117790.0,0.93933417]
[1755462838376,0.00088811,117800.0,117790.0,1.21684799]
[1755462838600,0.00088811,117800.0,117790.0,1.24235099]
[1755462839479,0.00088811,117800.0,117790.0,1.32716504]
[1755462839695,0.00088811,117800.0,117790.0,3.38176104]
[1755462840103,0.00088811,117800.0,117790.0,3.33172204]
[1755462840654,0.00088811,117800.0,117790.0,3.33372204]
[1755462840855,0.00088811,117800.0,117790.0,3.58824586]
[1755462841084,0.00088811,117800.0,117790.0,3.33672204]
[1755462841476,0.00088811,117800.0,117790.0,3.33372204]
[1755462841913,0.00088811,117800.0,117790.0,3.32972204]
[1755462842916,0.00088811,117800.0,117790.0,3.58424586]
[1755462843109,0.00088811,117800.0,117790.0,3.58524586]
[1755462844832,0.00088811,117800.0,117790.0,3.33072204]
[1755462845041,0.00088811,117800.0,117790.0,3.59572204]
[1755462848196,0.00088811,117800.0,117790.0,3.95694305]
[1755462848963,0.00088811,117800.0,117790.0,3.70241923]
[1755462850338,0.00088811,117800.0,117790.0,3.71041923]
[1755462852154,0.00088811,117800.0,117790.0,3.96494305]
[1755462855898,0.00088811,117800.0,117790.0,4.16870305]
[1755462860124,0.00088811,117800.0,117790.0,3.91417923]
[1755462861562,0.00088811,117800.0,117790.0,3.87639258]
[1755462862543,0.00088811,117800.0,117790.0,4.1309164]
[1755462863425,0.00088811,117800.0,117790.0,4.1229164]
[1755462868529,0.00088811,117800.0,117790.0,4.1309164]
[1755462873840,0.00088811,117800.0,117790.0,3.87639258]
[1755462875419,0.00088811,117800.0,117790.0,3.76969539]
[1755462878125,0.00088811,117800.0,117790.0,3.26064775]
[1755462878334,0.00088811,117800.0,117790.0,3.74670539]
[1755462878572,0.00294811,117800.0,117790.0,3.74670539]
[1755462880180,0.00294811,117800.0,117790.0,3.73870539]
[1755462883583,0.00294811,117800.0,117790.0,3.84544695]
[1755462883786,0.00618811,117800.0,117790.0,2.99859795]
[1755462883939,0.00618811,117800.0,117790.0,2.29431695]
[1755462888121,0.00618811,117800.0,117790.0,2.29629695]
[1755462888327,0.00088811,117800.0,117790.0,2.29945695]
[1755462890685,0.00088811,117800.0,117790.0,2.29145695]
[1755462900664,0.00294811,117800.0,117790.0,2.28829695]
[1755462900873,0.00618811,117800.0,117790.0,2.28829695]
[1755462901389,0.00618811,117800.0,117790.0,2.28627695]
[1755462901832,0.00618811,117800.0,117790.0,1.75778813]
[1755462902061,0.00618811,117800.0,117790.0,1.69071213]
[1755462903185,0.00618811,117800.0,117790.0,1.68971213]
[1755462903405,0.00618811,117800.0,117790.0,1.33141231]
[1755462903648,0.00618811,117800.0,117790.0,1.35039457]
[1755462903888,0.00618811,117800.0,117790.0,0.7743537]
[1755462904122,0.00618811,117800.0,117790.0,0.76387752]
[1755462904347,0.00618811,117800.0,117790.0,1.10387752]
[1755462904569,0.00618811,117800.0,117790.0,1.10087752]
[1755462905042,0.00618811,117800.0,117790.0,1.10287752]
[1755462906243,0.00618811,117800.0,117790.0,1.09887752]
[1755462906651,0.00618811,117800.0,117790.0,1.10187752]
[1755462917992,0.00618811,117800.0,117790.0,0.8473537]
[1755462918121,0.00618811,117800.0,117790.0,1.10187752]
[1755462920431,0.00618811,117800.0,117790.0,0.8473537]
[1755462920642,0.17596739,117800.0,117790.0,1.10187752]
[1755462921099,0.00618811,117800.0,117790.0,1.10187752]
[1755462922971,0.00618811,117800.0,117790.0,1.10391752]
[1755462923583,0.17596739,117800.0,117790.0,1.10391752]
[1755462924031,0.00618811,117800.0,117790.0,1.10391752]
[1755462926027,0.17596739,117800.0,117790.0,1.14124522]
[1755462928966,0.17272739,117800.0,117790.0,1.14124522]
[1755462930960,0.17272739,117800.0,117790.0,0.8867214]
[1755462931159,0.17272739,117800.0,117790.0,1.14124522]
[1755462932635,0.17272739,117800.0,117790.0,0.93748522]
[1755462935069,0.17570739,117800.0,117790.0,0.6808814]
[1755462935246,0.17570739,117800.0,117790.0,0.93540522]
[1755462935442,0.44768023,117800.0,117790.0,0.5110877]
[1755462935631,0.19315641,117800.0,117790.0,0.5110877]
[1755462936034,0.19315641,117800.0,117790.0,0.1710877]
[1755462938980,0.44768023,117800.0,117790.0,0.1710877]
[1755462939241,0.44768023,117800.0,117790.0,0.0423277]
[1755462939435,0.44768023,117800.0,117790.0,0.1710877]
[1755462939634,0.19315641,117800.0,117790.0,0.1710877]
[1755462940437,0.19315641,117800.0,117790.0,0.1680877]
[1755462940803,0.19315641,117800.0,117790.0,0.1690877]
[1755462941245,0.19315641,117800.0,117790.0,0.1680877]
[1755462941773,0.19315641,117800.0,117790.0,0.1690877]
[1755462956495,0.19315641,117800.0,117790.0,0.13176]
[1755462959348,0.19315641,117800.0,117790.0,0.38628382]
[1755462960539,0.19315641,117800.0,117790.0,0.42476271]
[1755462961907,0.19315641,117800.0,117790.0,0.42672271]
[1755462962550,0.19017641,117800.0,117790.0,0.42672271]
[1755462963329,0.19017641,117800.0,117790.0,0.42996271]
[1755462964369,0.18811641,117800.0,117790.0,0.42996271]
[1755462970209,0.18811641,117800.0,117790.0,0.59975641]
[1755462970408,0.18811641,117800.0,117790.0,0.42996271]
[1755462975488,0.18811641,117800.0,117790.0,0.17543889]
[1755462975701,0.18811641,117800.0,117790.0,0.42996271]
[1755462975915,0.18811641,117800.0,117790.0,0.17543889]
[1755462976137,0.18811641,117800.0,117790.0,0.42996271]
[1755462976573,0.18811641,117800.0,117790.0,0.39148382]
[1755462976797,0.18811641,117800.0,117790.0,0.13696]
[1755462976986,0.18811641,117800.0,117790.0,0.39148382]
[1755462979474,0.19021641,117800.0,117790.0,0.39148382]
[1755462979659,0.19021641,117800.0,117790.0,0.38824382]
[1755462980313,0.19021641,117800.0,117790.0,0.39148382]
[1755462980523,0.19021641,117800.0,117790.0,0.43010422]
[1755462982320,0.19021641,117800.0,117790.0,0.1723404]
[1755462982531,0.19314641,117800.0,117790.0,0.42686422]
[1755462985693,0.19314641,117800.0,117790.0,0.1723404]
[1755462987709,0.19314641,117800.0,117790.0,0.0416204]
[1755462987918,0.19314641,117800.0,117790.0,0.42482422]
[1755462989877,0.19314641,117800.0,117790.0,0.1703004]
[1755462990373,0.44767023,117800.0,117790.0,0.1703004]
[1755462990695,0.19314641,117800.0,117790.0,0.1703004]
[1755462991055,0.19314641,117800.0,117790.0,0.13168]
[1755462991261,0.53248428,117800.0,117790.0,0.13168]
[1755462992061,0.27796046,117800.0,117790.0,0.12868]
[1755462992288,0.53248428,117800.0,117790.0,0.12868]
[1755462993722,0.18724272,117790.0,117780.0,0.59452382]
[1755462993912,0.18724272,117790.0,117780.0,0.72824382]
[1755462994965,0.18724272,117790.0,117780.0,0.76672386]
[1755462995364,0.18724272,117790.0,117780.0,0.76872386]
[1755462997019,0.18724272,117790.0,117780.0,0.93853197]
[1755463003959,0.18724272,117790.0,117780.0,1.19305579]
[1755463006456,0.18724272,117790.0,117780.0,1.15557575]
[1755463006874,0.18724272,117790.0,117780.0,0.64652811]
[1755463007076,0.18724272,117790.0,117780.0,0.90105193]
[1755463010318,0.18724272,117790.0,117780.0,0.93915925]
[1755463012783,0.18724272,117790.0,117780.0,1.19368307]
[1755463020897,0.18811641,117800.0,117790.0,0.1697937]
[1755463021004,0.18811641,117800.0,117790.0,0.55799752]
[1755463021005,0.01833713,117800.0,117790.0,0.55799752]
[1755463021214,0.02020891,117800.0,117790.0,0.55799752]
[1755463021839,0.18998819,117800.0,117790.0,0.55799752]
[1755463022038,0.01833713,117800.0,117790.0,0.55799752]
[1755463022258,0.02020891,117800.0,117790.0,0.55799752]
[1755463022480,0.18998819,117800.0,117790.0,0.55799752]
[1755463022676,0.18811641,117800.0,117790.0,0.55799752]
[1755463023181,0.18811641,117800.0,117790.0,0.55899752]
[1755463023399,0.18811641,117800.0,117790.0,0.55999752]
[1755463025271,0.18811641,117800.0,117790.0,0.3054737]
[1755463025475,0.18811641,117800.0,117790.0,0.55999752]
[1755463029291,0.18811641,117800.0,117790.0,0.3054737]
[1755463029513,0.18811641,117800.0,117790.0,0.55999752]
[1755463041209,0.18811641,117800.0,117790.0,0.55899752]
[1755463041725,0.18811641,117800.0,117790.0,0.55999752]
[1755463044284,0.18811641,117800.0,117790.0,0.56099752]
[1755463049780,0.18811641,117800.0,117790.0,0.59862736]
[1755463054664,0.00088811,117800.0,117790.0,0.93862736]
[1755463057913,0.00088811,117800.0,117790.0,0.68410354]
[1755463058114,0.00088811,117800.0,117790.0,0.93862736]
[1755463070257,0.00088811,117800.0,117790.0,0.68410354]
[1755463070553,0.00088811,117800.0,117790.0,0.93862736]
[1755463089675,0.00275989,117800.0,117790.0,0.93862736]
[1755463092197,0.00088811,117800.0,117790.0,0.93862736]
[1755463093211,0.00275989,117800.0,117790.0,0.93862736]
[1755463094015,0.00476989,117800.0,117790.0,0.93862736]
[1755463100445,0.17454917,117800.0,117790.0,0.68104354]
[1755463100693,0.17573739,117800.0,117790.0,0.93358736]
[1755463103858,0.17573739,117800.0,117790.0,0.67906354]
[1755463104094,0.17573739,117800.0,117790.0,0.93358736]
[1755463104476,0.17573739,117800.0,117790.0,0.93556736]
[1755463105106,0.17267739,117800.0,117790.0,0.93556736]
[1755463106071,0.00289811,117800.0,117790.0,0.93872736]
[1755463106218,0.00476989,117800.0,117790.0,0.93872736]
[1755463107476,0.17454917,117800.0,117790.0,0.93872736]
[1755463107685,0.17267739,117800.0,117790.0,0.93872736]
[1755463111508,0.17267739,117800.0,117790.0,0.90109752]
[1755463124775,0.17267739,117800.0,117790.0,0.93958789]
[1755463135032,0.17267739,117800.0,117790.0,0.68506407]
[1755463135231,0.17267739,117800.0,117790.0,0.93958789]
[1755463150519,0.17267739,117800.0,117790.0,0.68506407]
[1755463150727,0.17267739,117800.0,117790.0,0.93958789]
[1755463153355,0.17267739,117800.0,117790.0,0.68506407]
[1755463153549,0.17267739,117800.0,117790.0,0.93958789]
[1755463158020,0.17267739,117800.0,117790.0,0.93543446]
[1755463168941,0.17233953,117800.0,117790.0,0.93543446]
[1755463178762,0.17233953,117800.0,117790.0,0.68091064]
[1755463178973,0.17233953,117800.0,117790.0,0.93543446]
[1755463182302,0.17233953,117800.0,117790.0,0.68091064]
[1755463182503,0.17233953,117800.0,117790.0,0.93543446]
[1755463182656,0.16733953,117800.0,117790.0,0.93543446]
[1755463182862,0.16921131,117800.0,117790.0,0.93543446]
[1755463185639,0.16921131,117800.0,117790.0,0.68091064]
[1755463185831,0.16921131,117800.0,117790.0,0.93543446]
[1755463200592,0.16921131,117800.0,117790.0,0.68091064]
[1755463200795,0.16921131,117800.0,117790.0,0.93543446]
[1755463203118,0.16733953,117800.0,117790.0,0.93543446]
[1755463203323,0.18131318,117810.0,117790.0,0.93543446]
[1755463203569,0.19881098,117810.0,117800.0,0.38292382]
[1755463203698,0.19575098,117810.0,117800.0,0.38790382]
[1755463204579,0.19787098,117810.0,117800.0,0.38790382]
[1755463205650,0.19787098,117810.0,117800.0,0.38890382]
[1755463205970,0.19787098,117810.0,117800.0,0.38990382]
[1755463208288,0.19787098,117810.0,117800.0,0.5596831]
[1755463212535,0.19575098,117810.0,117800.0,0.5596831]
[1755463213399,0.0174978,117810.0,117800.0,0.81420692]
[1755463213600,0.00192056,117810.0,117800.0,0.81420692]
[1755463213801,4.878e-05,117810.0,117800.0,0.81420692]
[1755463216052,4.878e-05,117810.0,117800.0,0.30515928]
[1755463216258,4.878e-05,117810.0,117800.0,0.81420692]
[1755463220524,4.878e-05,117810.0,117800.0,1.15420692]
[1755463221944,4.878e-05,117810.0,117800.0,1.15320692]
[1755463222349,4.878e-05,117810.0,117800.0,1.17892692]
[1755463222558,4.878e-05,117810.0,117800.0,1.17792692]
[1755463223005,4.878e-05,117810.0,117800.0,1.17892692]
[1755463230052,4.878e-05,117810.0,117800.0,2.63098474]
[1755463230258,4.878e-05,117810.0,117800.0,2.40196192]
[1755463230816,4.878e-05,117810.0,117800.0,2.40096192]
[1755463231054,4.878e-05,117810.0,117800.0,2.39996192]
[1755463231349,4.878e-05,117810.0,117800.0,2.40296192]
[1755463231554,4.878e-05,117810.0,117800.0,1.89391428]
[1755463231754,4.878e-05,117810.0,117800.0,2.40296192]
[1755463231946,4.878e-05,117810.0,117800.0,2.14617292]
[1755463233113,4.878e-05,117810.0,117800.0,2.14517292]
[1755463233318,4.878e-05,117810.0,117800.0,2.14717292]
[1755463234155,4.878e-05,117810.0,117800.0,2.05849292]
[1755463243277,4.878e-05,117810.0,117800.0,2.31301674]
[1755463248275,4.878e-05,117810.0,117800.0,1.54944528]
[1755463248479,4.878e-05,117810.0,117800.0,2.31001674]
[1755463248698,4.878e-05,117810.0,117800.0,2.31401674]
[1755463248872,4.878e-05,117810.0,117800.0,2.31201674]
[1755463249099,4.878e-05,117810.0,117800.0,2.31401674]
[1755463249280,4.878e-05,117810.0,117800.0,2.05949292]
[1755463249686,4.878e-05,117810.0,117800.0,2.05749292]
[1755463249897,4.878e-05,117810.0,117800.0,2.06049292]
[1755463258540,4.878e-05,117810.0,117800.0,1.55144528]
[1755463258734,4.878e-05,117810.0,117800.0,2.06049292]
[1755463259921,4.878e-05,117810.0,117800.0,2.39983079]
[1755463260092,4.878e-05,117810.0,117800.0,2.14530697]
[1755463262948,4.878e-05,117810.0,117800.0,2.39983079]
[1755463268830,4.878e-05,117810.0,117800.0,1.63625933]
[1755463269146,4.878e-05,117810.0,117800.0,2.39983079]
[1755463273289,4.878e-05,117810.0,117800.0,2.50657235]
[1755463273941,4.878e-05,117810.0,117800.0,2.77157235]
[1755463274582,4.878e-05,117810.0,117800.0,2.76457235]
[1755463274968,4.878e-05,117810.0,117800.0,2.76557235]
[1755463275551,4.878e-05,117810.0,117800.0,2.65883079]
[1755463279279,4.878e-05,117810.0,117800.0,2.39383079]
[1755463279446,4.878e-05,117810.0,117800.0,2.50057235]
[1755463282788,4.878e-05,117810.0,117800.0,2.76557235]
[1755463296043,4.878e-05,117810.0,117800.0,2.96933235]
[1755463311508,4.878e-05,117810.0,117800.0,2.86259079]
[1755463312594,4.878e-05,117810.0,117800.0,2.86159079]
[1755463313490,4.878e-05,117810.0,117800.0,3.56159079]
[1755463315953,4.878e-05,117810.0,117800.0,4.32516225]
[1755463316175,4.878e-05,117810.0,117800.0,3.56159079]
[1755463316425,1e-08,117810.0,117800.0,3.56159079]
[1755463316880,1e-08,117810.0,117800.0,4.33316225]
[1755463321610,1e-08,117810.0,117800.0,4.32516225]
[1755463326645,1e-08,117810.0,117800.0,4.33316225]
[1755463328888,1e-08,117810.0,117800.0,3.63316225]
[1755463331672,0.007343,117830.0,117820.0,1.27332192]
[1755463331880,0.00949177,117830.0,117820.0,6.21122597]
[1755463332312,0.00949177,117830.0,117820.0,6.23671697]
[1755463333444,0.00949177,117830.0,117820.0,6.34322306]
[1755463333858,0.00949177,117830.0,117820.0,6.34422306]
[1755463335580,0.00949177,117830.0,117820.0,5.5806516]
[1755463335800,0.01246177,117830.0,117820.0,2.07032724]
[1755463336036,0.01246177,117830.0,117820.0,2.19848724]
[1755463338423,0.01246177,117830.0,117820.0,2.45301106]
[1755463338934,0.01246177,117830.0,117820.0,2.46151529]
[1755463343406,0.01246177,117830.0,117820.0,2.20699147]
[1755463344885,0.01246177,117830.0,117820.0,2.46151529]
[1755463345770,0.01246177,117830.0,117820.0,2.20699147]
[1755463347547,0.00949177,117830.0,117820.0,2.20699147]
[1755463347870,0.00949177,117830.0,117820.0,2.46151529]
[1755463351426,0.00949177,117830.0,117820.0,2.46348529]
[1755463352244,0.00949177,117830.0,117820.0,2.46646529]
[1755463355228,0.00949177,117830.0,117820.0,2.50414673]
[1755463357597,0.00949177,117830.0,117820.0,2.50116673]
[1755463358814,0.00949177,117830.0,117820.0,2.50427673]
[1755463359822,0.00949177,117830.0,117820.0,2.49919673]
[1755463360411,0.00949177,117830.0,117820.0,2.50133673]
[1755463360923,0.00949177,117830.0,117820.0,2.50444673]
[1755463362396,0.00739177,117830.0,117820.0,2.50444673]
[1755463363037,0.00739177,117830.0,117820.0,2.70816673]
[1755463367909,0.00739177,117830.0,117820.0,2.50444673]
[1755463376068,0.00739177,117830.0,117820.0,1.74087527]
[1755463376275,0.00739177,117830.0,117820.0,2.50444673]
[1755463380603,0.00739177,117830.0,117820.0,1.74087527]
[1755463380811,0.00739177,117830.0,117820.0,2.50444673]
[1755463380994,0.00739177,117830.0,117820.0,2.80444673]
[1755463396654,0.00739177,117830.0,117820.0,3.00816673]
[1755463422337,0.00739177,117830.0,117820.0,2.24459527]
[1755463422541,0.00739177,117830.0,117820.0,3.00816673]
[1755463427074,0.00739177,117830.0,117820.0,2.24459527]
[1755463427380,0.00739177,117830.0,117820.0,3.00816673]
[1755463429250,0.00739177,117830.0,117820.0,2.24459527]
[1755463429457,0.00739177,117830.0,117820.0,3.00816673]
[1755463429768,0.00739177,117830.0,117820.0,2.24459527]
[1755463429974,0.00739177,117830.0,117820.0,3.00816673]
[1755463434173,0.00939177,117830.0,117820.0,3.00816673]
[1755463434378,0.00939177,117830.0,117820.0,3.00505673]
[1755463437571,0.00939177,117830.0,117820.0,3.00817673]
[1755463439546,0.00739177,117830.0,117820.0,3.00817673]
[1755463441314,0.00739177,117830.0,117820.0,2.24460527]
[1755463441515,0.00739177,117830.0,117820.0,3.00817673]
[1755463441690,0.00739177,117830.0,117820.0,3.00717673]
[1755463442147,0.00739177,117830.0,117820.0,3.00917673]
[1755463442355,0.00739177,117830.0,117820.0,3.00817673]
[1755463442784,0.00739177,117830.0,117820.0,3.00717673]
[1755463444542,0.00739177,117830.0,117820.0,2.24360527]
[1755463444746,0.00739177,117830.0,117820.0,3.00717673]
[1755463448140,0.00739177,117830.0,117820.0,2.24360527]
[1755463448291,0.00739177,117830.0,117820.0,3.00717673]
[1755463472504,0.00739177,117830.0,117820.0,2.24360527]
[1755463472687,0.00739177,117830.0,117820.0,3.00717673]
[1755463485019,0.00739177,117830.0,117820.0,2.95717673]
[1755463490673,0.00739177,117830.0,117820.0,2.9486725]
[1755463504779,0.00739177,117830.0,117820.0,3.71224396]
[1755463504979,0.00739177,117830.0,117820.0,2.9486725]
[1755463510045,0.00739177,117830.0,117820.0,3.6486725]
[1755463511365,1e-08,117830.0,117820.0,3.54216641]
[1755463520726,1e-08,117830.0,117820.0,4.30573787]
[1755463521127,1e-08,117830.0,117820.0,3.54216641]
[1755463521639,1e-08,117830.0,117820.0,4.30573787]
[1755463522864,1e-08,117830.0,117820.0,3.54216641]
[1755463525093,1e-08,117830.0,117820.0,4.30573787]
[1755463525271,1e-08,117830.0,117820.0,3.54216641]
[1755463528737,1e-08,117830.0,117820.0,4.30573787]
[1755463530508,1e-08,117830.0,117820.0,3.60573787]
[1755463533553,1e-08,117830.0,117820.0,4.27573787]
[1755463534851,1e-08,117830.0,117820.0,3.51216641]
[1755463552235,1e-08,117830.0,117820.0,4.27573787]
[1755463552440,1e-08,117830.0,117820.0,3.51216641]
[1755463552798,1e-08,117830.0,117820.0,2.74859495]
[1755463553003,1e-08,117830.0,117820.0,3.51216641]
[1755463560627,1e-08,117830.0,117820.0,4.27573787]
[1755463561231,1e-08,117830.0,117820.0,3.51216641]
[1755463561443,1e-08,117830.0,117820.0,4.27573787]
[1755463562336,1e-08,117830.0,117820.0,3.51216641]
[1755463566042,0.00212001,117830.0,117820.0,3.37874641]
[1755463566256,0.00518001,117830.0,117820.0,3.25262259]
[1755463566683,0.00518001,117830.0,117820.0,3.50714641]
[1755463567667,0.00518001,117830.0,117820.0,2.83714641]
[1755463568297,0.00518001,117830.0,117820.0,2.58262259]
[1755463568520,0.00518001,117830.0,117820.0,2.83714641]
[1755463570002,0.00518001,117830.0,117820.0,2.07357495]
[1755463570212,0.00518001,117830.0,117820.0,2.83714641]
[1755463571269,0.00518001,117830.0,117820.0,2.94371505]
[1755463573186,0.00518001,117830.0,117820.0,2.18014359]
[1755463573406,0.00518001,117830.0,117820.0,1.92529523]
[1755463573627,0.00518001,117830.0,117820.0,1.70186323]
[1755463573863,0.00518001,117830.0,117820.0,1.68975323]
[1755463574039,0.00518001,117830.0,117820.0,2.02975323]
[1755463574955,0.00518001,117830.0,117820.0,0.87802559]
[1755463575160,0.00518001,117830.0,117820.0,1.51551323]
[1755463575365,0.00518001,117830.0,117820.0,1.85551323]
[1755463575585,0.00518001,117830.0,117820.0,1.34646559]
[1755463575817,0.00518001,117830.0,117820.0,1.85551323]
[1755463576045,0.00518001,117830.0,117820.0,1.74894459]
[1755463578776,0.00705179,117830.0,117820.0,1.74894459]
[1755463579192,0.00518001,117830.0,117820.0,1.74894459]
[1755463579589,0.00705179,117830.0,117820.0,1.63863954]
[1755463585685,0.00705179,117830.0,117820.0,1.1295919]
[1755463585888,0.00705179,117830.0,117820.0,1.63863954]
[1755463590836,0.00705179,117830.0,117820.0,1.1295919]
[1755463591243,0.00705179,117830.0,117820.0,1.63863954]
[1755463593320,0.00399179,117830.0,117820.0,1.63863954]
[1755463595122,0.00399179,117830.0,117820.0,1.1295919]
[1755463595347,0.00399179,117830.0,117820.0,1.63863954]
[1755463596798,0.00399179,117830.0,117820.0,1.64071954]
[1755463597288,0.00399179,117830.0,117820.0,1.1316719]
[1755463597512,0.00399179,117830.0,117820.0,1.64071954]
[1755463598087,0.00399179,117830.0,117820.0,1.1316719]
[1755463598291,0.00399179,117830.0,117820.0,1.64071954]
[1755463598779,0.00353239,117830.0,117820.0,1.1348319]
[1755463598991,0.00353239,117830.0,117820.0,1.64387954]
[1755463600541,0.00353239,117830.0,117820.0,1.44015954]
[1755463600770,0.00187178,117830.0,117820.0,1.44015954]
[1755463601370,0.00187178,117830.0,117820.0,0.9311119]
[1755463601585,0.00187178,117830.0,117820.0,1.44015954]
[1755463601781,0.00403178,117830.0,117820.0,1.44015954]
[1755463602246,0.17376784,117830.0,117820.0,1.31171954]
[1755463602454,0.17491606,117830.0,117820.0,0.46664144]
[1755463602698,0.17491606,117830.0,117820.0,0.72116526]
[1755463604469,0.17491606,117830.0,117820.0,1.06616526]
[1755463609095,0.17189606,117830.0,117820.0,1.06616526]
[1755463610502,0.17189606,117830.0,117820.0,0.81164144]
[1755463610698,0.17491606,117830.0,117820.0,0.81164144]
[1755463610903,0.17491606,117830.0,117820.0,1.06616526]
[1755463611765,0.17491606,117830.0,117820.0,1.06416526]
[1755463612176,0.17491606,117830.0,117820.0,1.06116526]
[1755463612371,0.17491606,117830.0,117820.0,1.06316526]
[1755463613202,0.17491606,117830.0,117820.0,1.06516526]
[1755463613559,0.17491606,117830.0,117820.0,0.76516526]
[1755463615019,0.17189606,117830.0,117820.0,0.76516526]
[1755463615281,0.17189606,117830.0,117820.0,0.93491572]
[1755463615485,0.17189606,117830.0,117820.0,0.94015572]
[1755463615912,0.17189606,117830.0,117820.0,0.64795046]
[1755463616120,0.17189606,117830.0,117820.0,0.90247428]
[1755463616588,0.17189606,117830.0,117820.0,0.64795046]
[1755463616796,0.17189606,117830.0,117820.0,0.90247428]
[1755463618154,0.17189606,117830.0,117820.0,0.64795046]
[1755463618380,0.17189606,117830.0,117820.0,0.90247428]
[1755463618790,0.17189606,117830.0,117820.0,0.4782]
[1755463618997,0.17189606,117830.0,117820.0,0.73272382]
[1755463619197,0.17189606,117830.0,117820.0,0.4782]
[1755463619378,0.17189606,117830.0,117820.0,0.73272382]
[1755463620195,0.17189606,117830.0,117820.0,0.4782]
[1755463620393,0.17189606,117830.0,117820.0,0.73272382]
[1755463621675,0.17189606,117830.0,117820.0,0.90247428]
[1755463621879,0.17189606,117830.0,117820.0,0.64795046]
[1755463622084,0.17189606,117830.0,117820.0,0.90247428]
[1755463624038,0.17189606,117830.0,117820.0,0.64795046]
[1755463624252,0.17189606,117830.0,117820.0,0.90247428]
[1755463624782,0.17189606,117830.0,117820.0,0.64795046]
[1755463624953,0.17189606,117830.0,117820.0,0.90247428]
[1755463629222,0.16973606,117830.0,117820.0,0.90247428]
[1755463629460,0.16973606,117830.0,117820.0,1.1569981]
[1755463633237,0.16973606,117830.0,117820.0,0.98724764]
[1755463642944,0.16973606,117830.0,117820.0,0.4782]
[1755463643159,0.16973606,117830.0,117820.0,0.98724764]
[1755463646629,0.16973606,117830.0,117820.0,0.4782]
[1755463646863,0.16973606,117830.0,117820.0,0.98724764]
[1755463650228,0.16973606,117830.0,117820.0,0.4782]
[1755463650396,0.16973606,117830.0,117820.0,0.98724764]
[1755463651183,0.16973606,117830.0,117820.0,0.4782]
[1755463651401,0.16973606,117830.0,117820.0,0.98724764]
[1755463663606,0.16973606,117830.0,117820.0,0.4782]
[1755463664035,0.16973606,117830.0,117820.0,0.98724764]
[1755463669916,0.17189606,117830.0,117820.0,0.98724764]
[1755463670644,0.17189606,117830.0,117820.0,0.98200764]
[1755463672602,0.17189606,117830.0,117820.0,0.98408764]
[1755463673204,0.17189606,117830.0,117820.0,0.98728764]
[1755463678070,0.16973606,117830.0,117820.0,0.98728764]
[1755463706377,0.16973606,117830.0,117820.0,0.47824]
[1755463706580,0.16973606,117830.0,117820.0,0.98728764]
[1755463708938,0.16973606,117830.0,117820.0,0.47824]
[1755463709139,0.16973606,117830.0,117820.0,0.98728764]
[1755463737269,0.16973606,117830.0,117820.0,1.28728764]
[1755463744857,0.16973606,117830.0,117820.0,1.03276382]
[1755463745003,0.17174606,117830.0,117820.0,1.03276382]
[1755463747081,0.17174606,117830.0,117820.0,0.77824]
[1755463747297,0.4469589,117830.0,117820.0,0.644]
[1755463747496,0.59943481,117830.0,117820.0,0.304]
[1755463747700,0.62493781,117830.0,117820.0,0.43264]
[1755463748864,0.62493781,117830.0,117820.0,0.43064]
[1755463749096,0.64084564,117830.0,117820.0,0.43064]
[1755463749303,0.62493781,117830.0,117820.0,0.43164]
[1755463749481,0.62493781,117830.0,117820.0,0.302]
[1755463749683,0.62493781,117830.0,117820.0,0.3]
[1755463750074,0.62493781,117830.0,117820.0,0.301]
[1755463750304,0.62493781,117830.0,117820.0,0.001]
[1755463750502,0.18719948,117820.0,117810.0,0.12868]
[1755463750707,0.53178735,117820.0,117810.0,0.12868]
[1755463751833,0.53178735,117820.0,117810.0,0.12968]
[1755463752581,0.27726353,117820.0,117810.0,0.12968]
[1755463752863,0.55729135,117820.0,117810.0,0.13068]
[1755463753082,0.55729135,117820.0,117810.0,0.002]
[1755463753291,0.56573943,117820.0,117810.0,0.13064]
[1755463753917,0.82026325,117820.0,117810.0,0.13064]
[1755463754443,0.82026325,117820.0,117810.0,0.002]
[1755463761430,0.31121561,117820.0,117810.0,0.001]
[1755463761646,0.82026325,117820.0,117810.0,0.001]
[1755463761787,0.16976487,117810.0,117800.0,0.12868]
[1755463762007,0.51320274,117810.0,117800.0,0.12868]
[1755463762437,0.53871074,117810.0,117800.0,0.12868]
[1755463764291,0.53550074,117810.0,117800.0,0.12868]
[1755463765706,0.62485074,117810.0,117800.0,0.12868]
[1755463765908,0.53550074,117810.0,117800.0,0.12868]
[1755463766541,0.1872283,117800.0,117790.0,0.34304]
[1755463766699,0.27204235,117800.0,117790.0,0.47372]
[1755463768389,0.27204235,117800.0,117790.0,0.47472]
[1755463768995,0.27204235,117800.0,117790.0,0.47572]
[1755463771490,0.27204235,117800.0,117790.0,0.73024382]
[1755463772430,0.16977928,117800.0,117790.0,1.17892134]
[1755463772820,0.16977928,117800.0,117790.0,0.92439752]
[1755463773188,0.16976487,117810.0,117790.0,0.92439752]
[1755463773391,0.27202794,117810.0,117800.0,0.25757382]
[1755463773592,0.27202794,117810.0,117800.0,0.25953382]
[1755463777355,0.27202794,117810.0,117800.0,0.26053382]
[1755463778318,0.27202794,117810.0,117800.0,0.26153382]
[1755463778749,0.27202794,117810.0,117800.0,0.68583692]
[1755463778981,0.27202794,117810.0,117800.0,0.4313131]
[1755463787883,0.18721389,117810.0,117800.0,0.4313131]
[1755463788034,0.18721389,117810.0,117800.0,0.68583692]
[1755463788842,0.16976487,117810.0,117800.0,0.68583692]
[1755463789667,0.16976487,117810.0,117800.0,0.4313131]
[1755463792146,0.16976487,117810.0,117800.0,0.17678928]
[1755463792381,0.16976487,117810.0,117800.0,0.4313131]
[1755463794623,0.16976487,117810.0,117800.0,0.68583692]
[1755463796404,0.16976487,117810.0,117800.0,0.4313131]
[1755463800182,0.17823798,117820.0,117800.0,1.02583692]
[1755463800430,0.01744902,117820.0,117810.0,0.89593869]
[1755463800627,0.0193208,117820.0,117810.0,0.89789869]
[1755463800917,0.18907126,117820.0,117810.0,0.89789869]
[1755463801123,0.18719948,117820.0,117810.0,0.89789869]
[1755463801833,0.16975046,117820.0,117810.0,0.89789869]
[1755463804039,0.16975046,117820.0,117810.0,0.89889869]
[1755463804247,0.17822286,117830.0,117810.0,0.89889869]
[1755463804579,0.28048593,117830.0,117820.0,0.25452382]
[1755463804888,0.28246593,117830.0,117820.0,0.25452382]
[1755463805309,0.28246593,117830.0,117820.0,0.25652382]
[1755463805495,0.28246593,117830.0,117820.0,0.25946382]
[1755463805928,0.28246593,117830.0,117820.0,0.25652382]